bitfinex/quotes_BTCUSD_20250505
["timestamp","ask_amount","ask_price","bid_price","bid_amount"]
[1746446631744,1.7494243,94445.0,94444.0,8.67025657]
[1746446632433,1.7494243,94445.0,94444.0,8.6536202]
[1746446632634,2.2494243,94445.0,94444.0,8.6536202]
[1746446633435,2.2504243,94445.0,94444.0,8.6536202]
[1746446634025,2.2504243,94445.0,94444.0,8.6532202]
[1746446634269,2.2234243,94445.0,94444.0,8.6532202]
[1746446634894,2.2504243,94445.0,94444.0,8.6532202]
[1746446635317,2.7420243,94445.0,94444.0,8.6532202]
[1746446635747,2.7150243,94445.0,94444.0,8.6532202]
[1746446636123,2.7420243,94445.0,94444.0,8.6532202]
[1746446636324,2.10680401,94445.0,94444.0,8.21305104]
[1746446636522,2.25942773,94445.0,94444.0,8.21305104]
[1746446636749,2.2399686,94445.0,94444.0,8.19322909]
[1746446636950,2.2577759,94445.0,94444.0,8.18480343]
[1746446637160,2.2577759,94445.0,94444.0,7.91508262]
[1746446637358,2.7130219,94445.0,94444.0,7.23045034]
[1746446637555,2.5932819,94445.0,94444.0,6.90869717]
[1746446637715,2.5662819,94445.0,94444.0,6.57968794]
[1746446637910,2.5662819,94445.0,94444.0,6.36356721]
[1746446638134,2.5392819,94445.0,94444.0,5.89984825]
[1746446638360,2.5662819,94445.0,94444.0,5.50234608]
[1746446638599,2.5662819,94445.0,94444.0,4.48823985]
[1746446638753,2.51765818,94445.0,94444.0,4.22139257]
[1746446639094,2.56414772,94445.0,94444.0,3.54588257]
[1746446639293,2.54356121,94445.0,94444.0,3.1916913]
[1746446639438,2.58632144,94445.0,94444.0,2.96328426]
[1746446639639,2.60295255,94445.0,94444.0,2.62407839]
[1746446639836,2.60295255,94445.0,94444.0,2.20054673]
[1746446640036,2.54895255,94445.0,94444.0,1.9887809]
[1746446640331,2.54895255,94445.0,94444.0,1.45876924]
[1746446640514,2.57595255,94445.0,94444.0,1.24700341]
[1746446640718,2.57595255,94445.0,94444.0,0.80407157]
[1746446641007,2.57528022,94445.0,94444.0,0.78657557]
[1746446641179,2.57528022,94445.0,94444.0,0.57390974]
[1746446641387,2.57528022,94445.0,94444.0,0.44284925]
[1746446641585,2.57528022,94445.0,94444.0,0.43779552]
[1746446641785,2.56083644,94445.0,94444.0,0.21158591]
[1746446641967,0.46401956,94441.0,94431.0,0.002]
[1746446642194,3.34484079,94441.0,94440.0,8.611e-05]
[1746446642395,3.57640247,94441.0,94440.0,8.611e-05]
[1746446642583,4.04129247,94441.0,94440.0,8.611e-05]
[1746446642817,4.04129247,94441.0,94214.0,0.12974135]
[1746446642818,0.21196769,94354.0,94214.0,0.12974135]
[1746446643006,1.16246769,94354.0,94280.0,0.19663185]
[1746446643193,1.21466769,94354.0,94353.0,0.02145637]
[1746446643396,1.14755695,94354.0,94353.0,0.02145637]
[1746446643679,1.11419318,94354.0,94353.0,0.02145637]
[1746446643901,1.06419318,94354.0,94353.0,0.02145637]
[1746446645207,1.59119318,94354.0,94353.0,0.02145637]
[1746446645415,1.94243318,94354.0,94353.0,0.02145637]
[1746446645837,2.41143318,94354.0,94353.0,0.02145637]
[1746446646283,2.39243318,94354.0,94353.0,0.01745637]
[1746446646497,2.41043318,94354.0,94353.0,0.01745637]
[1746446646721,2.39379695,94354.0,94353.0,0.01745637]
[1746446649594,2.41043302,94354.0,94353.0,0.01745637]
[1746446649814,2.41043302,94354.0,94353.0,0.00082028]
[1746446653020,0.27261326,94334.0,94333.0,65.98718418]
[1746446653175,0.50510252,94334.0,94333.0,65.98718418]
[1746446653376,0.85638252,94334.0,94333.0,65.98118418]
[1746446653798,0.92301949,94334.0,94333.0,65.98118418]
[1746446654295,0.93601949,94334.0,94333.0,65.98118418]
[1746446654500,0.93601949,94334.0,94333.0,64.98118418]
[1746446654925,1.43601949,94334.0,94333.0,64.98118418]
[1746446655237,1.46101949,94334.0,94333.0,64.98118418]
[1746446655416,1.91101949,94334.0,94333.0,64.98118418]
[1746446656007,1.89438252,94334.0,94333.0,64.96460607]
[1746446658422,1.89438252,94334.0,94333.0,64.96360607]
[1746446659073,1.91101948,94334.0,94333.0,64.94696912]
[1746446660403,1.91101948,94334.0,94333.0,64.93996912]
[1746446661242,1.75101948,94334.0,94333.0,64.93996912]
[1746446661444,1.90101948,94334.0,94333.0,64.93996912]
[1746446664195,1.90101948,94334.0,94333.0,64.94096912]
[1746446664393,1.80101948,94334.0,94333.0,64.94096912]
[1746446665175,1.78801948,94334.0,94333.0,64.94096912]
[1746446665363,1.86301948,94334.0,94333.0,64.99021742]
[1746446665706,1.89501948,94334.0,94333.0,64.99021742]
[1746446666120,1.87838252,94334.0,94333.0,64.99021742]
[1746446666332,1.85638252,94334.0,94333.0,64.99021742]
[1746446666641,1.87538252,94334.0,94333.0,64.99021742]
[1746446667123,1.85638252,94334.0,94333.0,64.99021742]
[1746446667277,1.84638252,94334.0,94333.0,64.99021742]
[1746446667502,1.84638252,94334.0,94333.0,64.98321742]
[1746446667727,1.85538252,94334.0,94333.0,64.98321742]
[1746446668130,1.84638252,94334.0,94333.0,64.98321742]
[1746446668486,1.85538252,94334.0,94333.0,64.98321742]
[1746446668687,1.83559326,94334.0,94333.0,64.98321742]
[1746446668939,1.85539497,94334.0,94333.0,64.98321742]
[1746446669289,1.87439497,94334.0,94333.0,64.98321742]
[1746446669496,1.87439497,94334.0,94333.0,64.96658213]
[1746446672408,1.87439497,94334.0,94333.0,64.94994679]
[1746446672751,1.8743959,94334.0,94333.0,64.94994679]
[1746446674459,1.85459326,94334.0,94333.0,64.94994679]
[1746446674668,1.87439374,94334.0,94333.0,64.94294679]
[1746446675493,1.87439374,94334.0,94333.0,64.9263115]
[1746446676789,1.89102903,94334.0,94333.0,64.9263115]
[1746446677007,1.87439374,94334.0,94333.0,64.9263115]
[1746446677817,1.77439374,94334.0,94333.0,64.9263115]
[1746446678026,1.87439374,94334.0,94333.0,64.9263115]
[1746446678184,1.82439374,94334.0,94333.0,64.9263115]
[1746446678387,1.80459326,94334.0,94333.0,64.9263115]
[1746446679567,1.82122841,94334.0,94333.0,64.9263115]
[1746446679794,1.84102078,94334.0,94333.0,64.9263115]
[1746446680235,1.84102078,94334.0,94333.0,64.90967645]
[1746446680585,1.82122841,94334.0,94333.0,64.90967645]
[1746446681731,1.82122841,94334.0,94333.0,64.90267645]
[1746446682184,1.46994841,94334.0,94333.0,64.90267645]
[1746446684107,1.46994841,94334.0,94333.0,64.88604122]
[1746446684521,1.48973526,94334.0,94333.0,64.88604122]
[1746446685928,1.43973526,94334.0,94333.0,64.88604122]
[1746446686760,1.42310011,94334.0,94333.0,64.88604122]
[1746446687364,1.40331326,94334.0,94333.0,64.88604122]
[1746446687952,1.38431326,94334.0,94333.0,64.88604122]
[1746446688358,1.40231326,94334.0,94333.0,64.88604122]
[1746446688811,1.39331326,94334.0,94333.0,64.87904122]
[1746446688939,1.37531326,94334.0,94333.0,64.87904122]
[1746446689152,1.38131326,94334.0,94333.0,64.87904122]
[1746446689376,1.39831326,94334.0,94333.0,64.87904122]
[1746446691023,1.38131326,94334.0,94333.0,64.87904122]
[1746446691443,1.39931326,94334.0,94333.0,64.88004122]
[1746446692344,1.39331326,94334.0,94333.0,64.88004122]
[1746446692647,1.39931326,94334.0,94333.0,64.88004122]
[1746446695735,1.39931326,94334.0,94333.0,64.83079292]
[1746446695881,1.39931326,94334.0,94333.0,64.82379292]
[1746446696088,1.4833429,94334.0,94333.0,64.82379292]
[1746446697695,1.4653429,94334.0,94333.0,64.82279292]
[1746446698077,1.4863429,94334.0,94333.0,64.82379292]
[1746446698589,1.40231326,94334.0,94333.0,64.82379292]
[1746446699004,1.40231326,94334.0,94333.0,64.92931321]
[1746446699343,1.39631326,94334.0,94333.0,64.92931321]
[1746446699547,1.39631326,94334.0,94333.0,64.91267803]
[1746446699704,1.40506422,94334.0,94333.0,64.91267803]
[1746446703111,1.40506422,94334.0,94333.0,64.90567803]
[1746446708810,1.38406422,94334.0,94333.0,64.90467803]
[1746446709201,1.40006422,94334.0,94333.0,64.90467803]
[1746446710155,1.40006422,94334.0,94333.0,64.89767803]
[1746446710368,1.39106422,94334.0,94333.0,64.89767803]
[1746446710780,1.39606422,94334.0,94333.0,64.89767803]
[1746446713498,1.1737,94334.0,94333.0,64.89767803]
[1746446713727,1.1637,94334.0,94333.0,65.02411888]
[1746446714499,1.1587,94334.0,94333.0,65.02411888]
[1746446714948,1.1597,94334.0,94333.0,65.02411888]
[1746446715245,1.1437,94334.0,94333.0,65.02411888]
[1746446715471,1.1567,94334.0,94333.0,65.02511888]
[1746446717050,1.1567,94334.0,94333.0,65.01811888]
[1746446718573,1.1567,94334.0,94333.0,65.01711888]
[1746446722005,1.1567,94334.0,94333.0,65.01711888]
[1746446722757,1.12846025,94334.0,94333.0,65.01711888]
[1746446722978,1.10236084,94334.0,94333.0,65.01711888]
[1746446723908,1.03042717,94334.0,94333.0,65.01711888]
[1746446724332,1.10399917,94334.0,94333.0,65.01111888]
[1746446724710,1.08890543,94334.0,94333.0,65.01111888]
[1746446724923,1.07773989,94334.0,94333.0,65.04990205]
[1746446725262,1.05111012,94334.0,94333.0,65.01011888]
[1746446725487,0.61286835,94334.0,94333.0,64.90559859]
[1746446725706,0.61386835,94334.0,94333.0,64.94538176]
[1746446726189,0.5133599,94334.0,94333.0,64.94538176]
[1746446726386,0.38522085,94334.0,94333.0,64.94538176]
[1746446726815,0.55999985,94334.0,94333.0,64.94538176]
[1746446727233,1.05999985,94334.0,94333.0,64.94538176]
[1746446727418,1.00673993,94334.0,94333.0,64.94538176]
[1746446727815,1.05999993,94334.0,94333.0,64.94538176]
[1746446728019,1.05999993,94334.0,94333.0,64.94438176]
[1746446728391,0.81803305,94334.0,94333.0,64.94538176]
[1746446728556,0.78607305,94334.0,94333.0,64.94438176]
[1746446728755,0.55803405,94334.0,94333.0,64.94338176]
[1746446728996,0.50111405,94334.0,94333.0,64.90559859]
[1746446729195,0.61915405,94334.0,94333.0,64.90659859]
[1746446729406,0.61915405,94334.0,94333.0,64.90559859]
[1746446729624,0.58719405,94334.0,94333.0,64.90559859]
[1746446729796,0.58119405,94334.0,94333.0,64.90659859]
[1746446730191,0.58719405,94334.0,94333.0,64.90759859]
[1746446731841,0.579166,94334.0,94333.0,64.90759859]
[1746446732532,0.579166,94334.0,94333.0,64.90059859]
[1746446737194,0.579166,94334.0,94333.0,64.93938176]
[1746446737802,0.579166,94334.0,94333.0,64.90059859]
[1746446739580,0.579166,94334.0,94333.0,64.89359859]
[1746446746697,0.579166,94334.0,94333.0,64.88659859]
[1746446748901,0.5484597,94334.0,94333.0,64.88659859]
[1746446749104,0.4951997,94334.0,94333.0,64.88659859]
[1746446749372,0.4632397,94334.0,94333.0,64.88659859]
[1746446749537,0.35581488,94334.0,94333.0,64.88659859]
[1746446749892,0.28589488,94334.0,94333.0,64.88559859]
[1746446750076,0.25393488,94334.0,94333.0,64.88359859]
[1746446750282,0.22597488,94334.0,94333.0,64.88459859]
[1746446750502,0.19501488,94334.0,94333.0,64.88859859]
[1746446750872,0.16305488,94334.0,94333.0,64.88859859]
[1746446751054,0.12609488,94334.0,94333.0,64.88759859]
[1746446751253,0.09413488,94334.0,94333.0,64.88759859]
[1746446751465,0.06417488,94334.0,94333.0,64.88759859]
[1746446751668,0.03221488,94334.0,94333.0,64.88759859]
[1746446751815,0.11025488,94334.0,94333.0,64.88759859]
[1746446752666,0.61025488,94334.0,94333.0,64.88759859]
[1746446753829,0.61025488,94334.0,94333.0,64.88059859]
[1746446759986,0.53525488,94334.0,94333.0,64.88059859]
[1746446760883,0.53525488,94334.0,94333.0,64.87359859]
[1746446762229,0.6633,94334.0,94333.0,64.87359859]
[1746446762886,0.631,94334.0,94333.0,64.86959859]
[1746446763776,0.632,94334.0,94333.0,64.87259859]
[1746446764226,0.636,94334.0,94333.0,64.87259859]
[1746446766444,0.2281,94334.0,94333.0,64.87259859]
[1746446767915,0.2281,94334.0,94333.0,64.86559859]
[1746446772376,0.3202,94336.0,94334.0,0.01454085]
[1746446772585,0.3202,94336.0,94335.0,0.12644085]
[1746446772831,0.66,94336.0,94335.0,0.12644085]
[1746446774159,1.165,94336.0,94335.0,0.12944085]
[1746446775017,1.1769,94336.0,94335.0,0.12244085]
[1746446775333,1.1917,94336.0,94335.0,0.11944085]
[1746446775443,1.1957,94336.0,94335.0,0.11944085]
[1746446777281,1.1927,94336.0,94335.0,0.12244085]
[1746446777653,1.1769,94336.0,94335.0,0.12244085]
[1746446778301,0.772,94336.0,94335.0,0.12244085]
[1746446778600,0.7877,94336.0,94335.0,0.12244085]
[1746446778908,1.1079,94336.0,94335.0,0.12244085]
[1746446780786,1.1079,94336.0,94335.0,0.12219181]
[1746446781920,0.6079,94336.0,94335.0,0.12219181]
[1746446782124,0.6079,94336.0,94335.0,0.11519181]
[1746446784463,0.29,94336.0,94335.0,0.52309181]
[1746446784931,0.50200814,94336.0,94335.0,0.4109]
[1746446785565,0.50200814,94336.0,94335.0,0.523]
[1746446785977,0.50200814,94336.0,94335.0,0.53754085]
[1746446787329,0.49900814,94336.0,94335.0,0.53754085]
[1746446787533,0.49800814,94336.0,94335.0,0.53454085]
[1746446787735,0.50400814,94336.0,94335.0,0.53554085]
[1746446787929,0.50400814,94336.0,94335.0,0.53654085]
[1746446788359,0.49800814,94336.0,94335.0,0.53554085]
[1746446788932,0.50200814,94336.0,94335.0,0.53554085]
[1746446789152,0.50200814,94336.0,94335.0,0.52854085]
[1746446794905,0.41200814,94336.0,94335.0,0.52854085]
[1746446796629,0.41200814,94336.0,94335.0,0.41644085]
[1746446796853,0.41200814,94336.0,94335.0,0.40944085]
[1746446797509,0.41200814,94336.0,94335.0,0.001]
[1746446798621,0.24301263,94334.0,94333.0,64.73615774]
[1746446798781,0.24301263,94334.0,94333.0,64.71955774]
[1746446799181,0.24301263,94334.0,94333.0,64.70395774]
[1746446799501,0.26281561,94334.0,94333.0,64.70395774]
[1746446799704,0.42721561,94334.0,94333.0,64.70395774]
[1746446799910,0.43121561,94334.0,94333.0,64.70495774]
[1746446800312,0.41141263,94334.0,94333.0,64.70495774]
[1746446801571,0.43219788,94334.0,94333.0,64.70495774]
[1746446801913,0.43119788,94334.0,94333.0,64.70495774]
[1746446802116,0.41141263,94334.0,94333.0,64.70495774]
[1746446802324,0.41641263,94334.0,94333.0,64.70595774]
[1746446802727,0.41241263,94334.0,94333.0,64.71949859]
[1746446803967,0.41241263,94334.0,94333.0,64.71249859]
[1746446804713,0.41241263,94334.0,94333.0,64.69795774]
[1746446807513,0.43218388,94334.0,94333.0,64.69795774]
[1746446810320,0.41241263,94334.0,94333.0,64.69795774]
[1746446811006,0.41241263,94334.0,94333.0,64.69095774]
[1746446812217,0.43218337,94334.0,94333.0,64.69095774]
[1746446813814,0.93218337,94334.0,94333.0,64.69095774]
[1746446818101,0.93218337,94334.0,94333.0,64.68395774]
[1746446818662,0.91241263,94334.0,94333.0,64.68395774]
[1746446820564,0.6694,94334.0,94333.0,64.69849859]
[1746446820744,0.6694,94334.0,94333.0,64.71499859]
[1746446820945,0.6694,94334.0,94333.0,64.73119859]
[1746446821501,0.6644,94334.0,94333.0,64.73019859]
[1746446821693,0.6674,94334.0,94333.0,64.73119859]
[1746446822125,0.8174,94334.0,94333.0,64.73119859]
[1746446822332,0.8044,94334.0,94333.0,64.73019859]
[1746446822900,0.8044,94334.0,94333.0,64.84229859]
[1746446823109,0.8044,94334.0,94333.0,65.23619859]
[1746446823827,0.8044,94334.0,94333.0,65.12409859]
[1746446824011,0.8084,94334.0,94333.0,65.12509859]
[1746446824440,0.8044,94334.0,94333.0,65.12409859]
[1746446825093,0.51019143,94334.0,94333.0,65.23619859]
[1746446825248,0.48678064,94334.0,94333.0,65.23019859]
[1746446825658,0.63999964,94334.0,94333.0,65.23019859]
[1746446827147,1.13999964,94334.0,94333.0,65.23019859]
[1746446827356,1.13999964,94334.0,94333.0,65.22919859]
[1746446827559,1.14099964,94334.0,94333.0,65.23319859]
[1746446828108,1.13999964,94334.0,94333.0,65.22919859]
[1746446828399,1.14099964,94334.0,94333.0,65.23419859]
[1746446832268,1.14099964,94334.0,94333.0,65.22719859]
[1746446833861,1.14099964,94334.0,94333.0,65.11509859]
[1746446838352,1.0787798,94334.0,94333.0,65.11509859]
[1746446838735,1.06092242,94334.0,94333.0,65.11509859]
[1746446838891,0.91207941,94334.0,94333.0,65.11509859]
[1746446839231,0.89475365,94334.0,94333.0,65.11509859]
[1746446839451,0.89475365,94334.0,94333.0,65.10809859]
[1746446839668,1.13391198,94334.0,94333.0,65.22019859]
[1746446840089,1.14099998,94334.0,94333.0,65.22019859]
[1746446841403,1.04712774,94334.0,94333.0,65.22019859]
[1746446841708,1.07835474,94334.0,94333.0,65.22019859]
[1746446843459,0.57835474,94334.0,94333.0,65.22019859]
[1746446844370,0.32445474,94334.0,94333.0,64.82629859]
[1746446845506,0.141,94334.0,94333.0,64.82629859]
[1746446845726,0.001,94334.0,94333.0,64.82629859]
[1746446846453,0.001,94334.0,94333.0,64.81929859]
[1746446850313,0.001,94334.0,94333.0,65.22719859]
[1746446853581,0.001,94334.0,94333.0,65.22019859]
[1746446859032,0.0153,94354.0,94336.0,0.12664085]
[1746446859235,0.0153,94354.0,94338.0,0.01454085]
[1746446860100,0.5,94346.0,94338.0,0.01454085]
[1746446860677,0.5,94346.0,94338.0,0.00754085]
[1746446861940,0.5,94346.0,94338.0,0.01054085]
[1746446862279,0.5,94346.0,94339.0,0.4079]
[1746446862691,0.5,94346.0,94340.0,0.01454085]
[1746446864230,0.5,94346.0,94340.0,0.01854085]
[1746446864827,0.5,94346.0,94340.0,0.004]
[1746446865654,0.5,94346.0,94341.0,0.01454085]
[1746446866069,0.5,94346.0,94344.0,0.01454085]
[1746446867628,0.5,94346.0,94344.0,0.01054085]
[1746446868436,0.5,94346.0,94345.0,0.4079]
[1746446869034,0.5,94346.0,94345.0,0.45580113]
[1746446869673,0.5,94346.0,94345.0,0.47034198]
[1746446870114,0.5,94346.0,94345.0,0.47334198]
[1746446874534,0.5,94346.0,94345.0,0.49326301]
[1746446874713,0.5,94346.0,94345.0,0.48626301]
[1746446876118,0.5,94346.0,94345.0,0.22176301]
[1746446877107,0.5,94346.0,94345.0,0.21876301]
[1746446877315,0.501,94346.0,94345.0,0.22276301]
[1746446877759,0.48338672,94346.0,94345.0,0.22276301]
[1746446877964,0.35401427,94346.0,94345.0,0.21876301]
[1746446878135,0.34948279,94346.0,94345.0,0.22576301]
[1746446878701,0.001,94346.0,94345.0,0.22576301]
[1746446881917,0.0163,94370.0,94351.0,0.1121]
[1746446882116,0.0163,94370.0,94354.0,0.01454085]
[1746446882320,0.0163,94370.0,94354.0,0.12664085]
[1746446882724,0.0163,94370.0,94356.0,0.01454085]
[1746446883234,0.5,94362.0,94358.0,0.01454085]
[1746446883670,0.5,94362.0,94360.0,0.01454085]
[1746446884095,0.5,94362.0,94361.0,0.03446188]
[1746446884502,0.5,94362.0,94361.0,0.05026188]
[1746446884710,0.5,94362.0,94361.0,0.17786188]
[1746446884926,0.5,94362.0,94361.0,0.17790797]
[1746446886340,0.5,94362.0,94361.0,0.14660797]
[1746446888323,0.501,94362.0,94361.0,0.15260797]
[1746446889037,0.501,94362.0,94361.0,0.14560797]
[1746446889479,0.48925781,94362.0,94361.0,0.17770797]
[1746446889679,0.001,94362.0,94361.0,0.17770797]
[1746446890216,0.001,94362.0,94361.0,0.14560797]
[1746446890440,0.0314,94375.0,94364.0,0.01454085]
[1746446890645,0.01662043,94401.0,94375.0,0.1121]
[1746446890845,0.0314,94394.0,94384.0,0.01454085]
[1746446891082,0.0325,94398.0,94388.0,0.12464085]
[1746446891273,0.01662043,94401.0,94388.0,0.12464085]
[1746446891470,0.0325,94398.0,94388.0,0.12464085]
[1746446891643,0.0166,94398.0,94388.0,0.12464085]
[1746446891849,0.0159,94397.0,94388.0,0.12464085]
[1746446892052,0.5,94393.0,94388.0,0.12464085]
[1746446892256,0.032,94392.0,94388.0,0.12464085]
[1746446893427,0.0302,94400.0,94388.0,0.12464085]
[1746446893548,0.0302,94398.0,94388.0,0.12464085]
[1746446893740,0.5,94390.0,94388.0,0.12464085]
[1746446893945,0.0302,94389.0,94388.0,0.12464085]
[1746446895566,0.0312,94400.0,94388.0,0.12464085]
[1746446895767,0.5,94389.0,94388.0,0.12464085]
[1746446895966,0.5,94389.0,94388.0,0.11964085]
[1746446896535,0.5313,94389.0,94388.0,0.11964085]
[1746446896741,0.5153,94389.0,94388.0,0.11964085]
[1746446896949,0.5,94389.0,94388.0,0.11964085]
[1746446897585,0.5,94389.0,94388.0,0.13614085]
[1746446897789,0.5,94389.0,94388.0,0.15274085]
[1746446897994,0.01662043,94401.0,94388.0,0.15274085]
[1746446899303,0.01662043,94401.0,94388.0,0.15474085]
[1746446900535,0.002,94409.0,94388.0,0.15474085]
[1746446900536,0.002,94409.0,94390.0,0.12464085]
[1746446900943,0.002,94409.0,94392.0,0.12464085]
[1746446901377,0.002,94409.0,94394.0,0.12464085]
[1746446901791,0.002,94409.0,94396.0,0.12464085]
[1746446902397,0.002,94409.0,94408.0,0.12464085]
[1746446902565,0.002,94409.0,94408.0,0.15534085]
[1746446903186,0.0153,94445.0,94408.0,0.14834085]
[1746446903346,0.0153,94445.0,94410.0,0.1101]
[1746446903963,0.0153,94445.0,94412.0,0.1101]
[1746446904171,0.0153,94445.0,94408.0,0.03824085]
[1746446904172,0.0153,94445.0,94414.0,0.1101]
[1746446904413,0.0153,94445.0,94416.0,0.1101]
[1746446904554,0.0158,94448.0,94416.0,0.1101]
[1746446904958,0.0158,94448.0,94418.0,0.1101]
[1746446905186,0.0158,94448.0,94428.0,0.12464085]
[1746446906378,0.0158,94448.0,94428.0,0.12468694]
[1746446906812,0.0158,94448.0,94428.0,0.13068694]
[1746446909025,0.0158,94448.0,94429.0,0.01454085]
[1746446909429,0.0158,94448.0,94428.0,0.00604609]
[1746446909869,0.0158,94448.0,94429.0,0.01454085]
[1746446910101,0.5,94438.0,94429.0,0.01454085]
[1746446911086,0.5,94438.0,94429.0,0.00754085]
[1746446911879,0.5,94438.0,94430.0,0.1101]
[1746446913184,0.5157,94438.0,94437.0,0.12464085]
[1746446913496,0.5,94438.0,94437.0,0.12464085]
[1746446914620,0.49976115,94438.0,94437.0,0.12464085]
[1746446915165,0.49976115,94438.0,94437.0,0.12864085]
[1746446915734,0.51496115,94438.0,94437.0,0.12864085]
[1746446916167,0.53046115,94438.0,94437.0,0.12864085]
[1746446917383,0.53046115,94438.0,94437.0,0.01854085]
[1746446917756,0.49976115,94438.0,94437.0,0.03835637]
[1746446918136,0.49976115,94438.0,94437.0,0.03135637]
[1746446918342,0.51526115,94438.0,94437.0,0.03135637]
[1746446918859,0.51526115,94438.0,94437.0,0.14345637]
[1746446919310,0.49976115,94438.0,94437.0,0.14345637]
[1746446919520,0.51546115,94438.0,94437.0,0.14345637]
[1746446920425,0.53086115,94438.0,94437.0,0.14345637]
[1746446921906,0.53086115,94438.0,94437.0,0.12364085]
[1746446922237,0.49976115,94438.0,94437.0,0.12364085]
[1746446922521,0.53076115,94438.0,94437.0,0.03135637]
[1746446922736,0.53076115,94438.0,94437.0,0.01154085]
[1746446923261,0.53076115,94438.0,94437.0,0.004]
[1746446923650,0.53076115,94438.0,94437.0,0.01854085]
[1746446924661,0.48805892,94438.0,94437.0,0.01454085]
[1746446925064,0.48805892,94438.0,94437.0,0.01554085]
[1746446925271,0.48805892,94438.0,94437.0,0.001]
[1746446925478,0.0311,94437.0,94430.0,0.01454085]
[1746446925678,0.0158,94436.0,94431.0,0.01981552]
[1746446925885,0.0158,94437.0,94431.0,0.01981552]
[1746446926359,0.0154,94436.0,94432.0,0.01981552]
[1746446926569,0.0154,94448.0,94432.0,0.01981552]
[1746446926876,0.43924,94434.0,94433.0,0.01981552]
[1746446927284,0.43924,94434.0,94433.0,0.03435637]
[1746446928484,0.43924,94434.0,94433.0,0.03535637]
[1746446928689,0.45524,94434.0,94433.0,0.03535637]
[1746446932342,0.45524,94434.0,94433.0,0.02835637]
[1746446938551,0.42384,94434.0,94433.0,0.14045637]
[1746446939093,0.43884,94434.0,94433.0,0.14045637]
[1746446939300,0.43884,94434.0,94433.0,0.13345637]
[1746446940308,0.45494,94434.0,94433.0,0.02135637]
[1746446941192,0.45494,94434.0,94433.0,0.13345637]
[1746446941839,0.45494,94434.0,94433.0,0.02135637]
[1746446942045,0.45494,94434.0,94433.0,0.06915203]
[1746446943339,0.45494,94434.0,94433.0,0.05461118]
[1746446945323,0.45494,94434.0,94433.0,0.00681552]
[1746446946378,0.42384,94434.0,94431.0,0.04988174]
[1746446946753,0.0166,94432.0,94431.0,0.04988174]
[1746446947285,0.033,94432.0,94431.0,0.04988174]
[1746446947488,0.03016981,94432.0,94431.0,0.04988174]
[1746446947805,0.03016981,94432.0,94431.0,0.05088174]
[1746446948375,0.03016981,94432.0,94431.0,0.001]
[1746446949113,0.45400981,94432.0,94431.0,0.001]
[1746446949363,0.42384,94432.0,94428.0,4.609e-05]
[1746446949734,0.0166,94430.0,94428.0,4.609e-05]
[1746446949935,0.42384,94432.0,94428.0,4.609e-05]
[1746446950357,0.42384,94432.0,94431.0,0.001]
[1746446950537,0.45624,94432.0,94431.0,0.001]
[1746446952246,0.0325,94430.0,94428.0,4.609e-05]
[1746446952449,0.0302,94429.0,94428.0,4.609e-05]
[1746446953637,0.0302,94429.0,94418.0,0.10514609]
[1746446953848,0.0302,94429.0,94418.0,0.1051921]
[1746446954055,0.45404,94429.0,94422.0,0.09819218]
[1746446954252,0.45404,94429.0,94428.0,0.01554085]
[1746446954659,0.43904,94429.0,94428.0,0.01454085]
[1746446955067,0.45514,94429.0,94428.0,0.01454085]
[1746446955950,0.45514,94429.0,94428.0,0.01654085]
[1746446958663,0.45514,94429.0,94428.0,0.03644289]
[1746446960708,0.45514,94429.0,94428.0,0.02944289]
[1746446964084,0.45514,94429.0,94428.0,0.07739024]
[1746446967728,0.45514,94429.0,94428.0,0.06984939]
[1746446969772,0.45514,94429.0,94428.0,0.08439024]
[1746446974791,0.45514,94429.0,94428.0,0.07739024]
[1746446976429,0.45514,94429.0,94428.0,0.0624882]
[1746446981889,0.45514,94429.0,94428.0,0.0554882]
[1746446985738,0.42384,94429.0,94428.0,0.0554882]
[1746446986979,0.42384,94429.0,94428.0,0.07541018]
[1746446988934,0.42384,94429.0,94428.0,0.06841018]
[1746446991274,0.42384,94429.0,94428.0,0.46176933]
[1746446991959,0.42384,94429.0,94428.0,0.46376933]
[1746446992169,0.42384,94429.0,94428.0,0.05586933]
[1746446993373,0.42384,94429.0,94428.0,0.18251018]
[1746446994045,0.42384,94429.0,94428.0,0.21451018]
[1746446994209,0.42384,94429.0,94428.0,0.65228783]
[1746446994420,0.002,94449.0,94430.0,0.1121]
[1746446994581,0.002,94449.0,94444.0,0.1121]
[1746446994810,0.002,94449.0,94431.0,0.43777765]
[1746446994811,0.002,94449.0,94445.0,0.12664085]
[1746446995048,0.002,94449.0,94447.0,0.01454085]
[1746446995458,0.002,94449.0,94448.0,0.03446283]
[1746446995999,0.002,94449.0,94448.0,0.02746283]
[1746446996133,0.502,94449.0,94448.0,0.02746283]
[1746446996514,0.502455,94449.0,94448.0,0.02746283]
[1746447000080,0.502455,94449.0,94448.0,0.13956283]
[1746447001334,0.51906124,94449.0,94448.0,0.15456283]
[1746447001528,0.51906124,94449.0,94448.0,0.17096283]
[1746447002832,0.51906124,94449.0,94448.0,0.17296283]
[1746447003037,0.01906124,94449.0,94448.0,0.17296283]
[1746447003238,0.01906124,94449.0,94448.0,0.16596283]
[1746447004322,0.002455,94449.0,94448.0,0.1455]
[1746447006299,0.002,94469.0,94451.0,0.12664085]
[1746447006505,0.002,94469.0,94453.0,0.12664085]
[1746447008777,0.005,94469.0,94453.0,0.12664085]
[1746447009331,0.0166043,94466.0,94453.0,0.12664085]
[1746447010328,0.0166043,94466.0,94453.0,0.11964085]
[1746447010688,0.0166043,94466.0,94452.0,0.405445]
[1746447010689,0.0166043,94466.0,94455.0,0.1121]
[1746447011753,0.0186043,94466.0,94455.0,0.1121]
[1746447012097,0.0166043,94466.0,94455.0,0.1121]
[1746447012306,0.0166043,94466.0,94456.0,0.41998585]
[1746447012748,0.0186043,94466.0,94456.0,0.41998585]
[1746447013477,0.0166043,94466.0,94456.0,0.41998585]
[1746447013681,0.0186043,94466.0,94457.0,0.1121]
[1746447014063,0.01851138,94466.0,94457.0,0.1121]
[1746447015209,0.01651138,94466.0,94457.0,0.1121]
[1746447015550,0.01851138,94466.0,94457.0,0.1121]
[1746447015751,0.002,94466.0,94457.0,0.1121]
[1746447016354,0.002,94466.0,94457.0,0.13191652]
[1746447017368,0.002,94466.0,94457.0,0.12491652]
[1746447017762,0.002,94469.0,94457.0,0.12491652]
[1746447018308,0.002,94469.0,94459.0,0.01454085]
[1746447018736,0.01660375,94467.0,94459.0,0.03435737]
[1746447019758,0.002,94469.0,94459.0,0.01775343]
[1746447019961,0.002,94467.0,94459.0,0.01775343]
[1746447020165,0.002,94467.0,94458.0,0.405445]